Cogmind - Beta 16 *** ADVENTURER MODE // 2025.11.03 @ 15:09:18 Player: Jefffff Result: Core destroyed Performance ------------- Evolutions (6) 3000 Regions Visited (13) 2600 Robots Destroyed (152) 760 Value Destroyed (6193) 6193 Prototype IDs (8) 160 Alien Tech Used (0) 0 Bonus (3045) 3045 TOTAL SCORE: 15758 Bonus ------- High Alert Combat Kills 302 Follower Combat Kills 2159 Network Hubs Disabled 200 Built Enhanced Grunts 300 Met R17 at Cetus 500 Friendly Fire -416 Cogmind --------- Core Integrity 0/1150 Matter 252/300 Energy 109/365 System Corruption 1% Temperature Critical (1272) Movement Hovering (138) Ox2 Location -4/Factory Parts ------- > --- POWER (3) -------- Neutrino Core Micro Fission Core > --- PROPULSION (6) --- Gyrokinetic Inverter Gyrokinetic Inverter Gyrokinetic Inverter Gyrokinetic Inverter Improved Gyrokinetic Inverter > --- UTILITY (7) ------ Advanced Heat Sink Huge Storage Unit Advanced Visual Processing Unit Advanced Signal Interpreter Core Analyzer > --- WEAPON (3) ------- Advanced Plasma Cannon Matter Neutralizer > --- INVENTORY (25) --- Light Angular Momentum Engine Light Angular Momentum Engine Neutrino Core Micro Fission Core Centrium Wheel Advanced Heat Sink Humpback IFF Parser Improved Target Analyzer Microactuators ECM Suite Advanced Reaction Control System Improved Phase Shifter Improved Propulsion Shielding Improved Medium Armor Plating Improved Shock Absorption System Improved Field Recycling Unit (0) Dispersion Rifle HERF Cannon Heavy Phase Cannon KE Penetrator Enhanced Coil Gun Micro-nuke Launcher Improved Remote Datajack Peak State ------------ > --- POWER ------------ Neutrino Core Micro Fission Core Light Antimatter Reactor > --- PROPULSION ------- Gyrokinetic Inverter Gyrokinetic Inverter Gyrokinetic Inverter Gyrokinetic Inverter Improved Antigrav System Improved Gyrokinetic Inverter > --- UTILITY ---------- Advanced Heat Sink Advanced Heat Sink Huge Storage Unit Machine Analyzer Advanced Visual Processing Unit Advanced Signal Interpreter Core Analyzer > --- WEAPON ----------- Advanced Plasma Cannon Heavy Phase Cannon Matter Neutralizer > --- INVENTORY -------- Light Angular Momentum Engine Light Angular Momentum Engine Neutrino Core Micro Fission Core Centrium Wheel Advanced Heat Sink Humpback IFF Parser Improved Target Analyzer Microactuators ECM Suite Advanced Reaction Control System Improved Phase Shifter Improved Propulsion Shielding Improved Medium Armor Plating Improved Shock Absorption System Improved Field Recycling Unit Dispersion Rifle HERF Cannon Heavy Phase Cannon KE Penetrator Enhanced Coil Gun Micro-nuke Launcher Improved Remote Datajack [Rating: 114] Favorites ----------- Power Micro Fission Core Engine Angular Momentum Engine Power Core Micro Fission Core Reactor Quantum Reactor Propulsion Armored Huge Wheel Treads Medium Treads Leg Aluminum Leg Wheel Armored Huge Wheel Hover Unit Antigrav System Utility Huge Storage Unit Device Improved Cooling System Storage Huge Storage Unit Processor Advanced Signal Interpreter Protection Light Armor Plating Weapon Heavy Plasma Cannon Energy Gun Advanced Variable Charge Gun Energy Cannon Heavy Plasma Cannon Ballistic Gun Light Assault Rifle Ballistic Cannon Magnetic Acceleration Cannon Launcher Proton Missile Launcher Impact Weapon Heavy Mace Build | -11 -10 -10 -10 -9 -8 -7 -6 -6 -6 -6 -6 -5 -4 ------- Run | Yrd Mat Min Exi Min Mat Fac Fac Ext Cet Arc Hub Fac Fac Slots Evolved 12 | . . . . . 4 2 2 . . . . 2 2 Power 2 | . . . . . . 1 . . . . . 1 . Propulsion 4 | . . . . . 2 . 1 . . . . . 1 Utility 5 | . . . . . 2 1 1 . . . . . 1 Weapon 1 | . . . . . . . . . . . . 1 . Parts Attached 155 | 3 . 4 . 11 14 11 26 23 6 . 14 26 17 Power 27 | 1 . 1 . 2 . 1 5 7 2 . . 7 1 Engine 11 | 1 . 1 . 2 . . 2 4 . . . 1 . Core 13 | . . . . . . 1 3 3 . . . 6 . Reactor 3 | . . . . . . . . . 2 . . . 1 Propulsion 54 | 2 . . . 5 7 5 7 4 . . 7 8 9 Treads 6 | . . . . 1 1 . 1 1 . . . 2 . Leg 22 | . . . . 4 3 . 4 2 . . 7 1 1 Wheel 12 | 2 . . . . 3 3 2 1 . . . 1 . Hover 14 | . . . . . . 2 . . . . . 4 8 Flight . | . . . . . . . . . . . . . . Utility 38 | . . 1 . 2 3 2 8 10 1 . 2 5 4 Device 19 | . . . . . 2 1 3 6 . . 2 2 3 Storage 2 | . . 1 . . . . 1 . . . . . . Processor 8 | . . . . . 1 1 . 2 . . . 3 1 Hackware . | . . . . . . . . . . . . . . Protection 9 | . . . . 2 . . 4 2 1 . . . . Artifact . | . . . . . . . . . . . . . . Weapon 36 | . . 2 . 2 4 3 6 2 3 . 5 6 3 Energy Gun 5 | . . . . 1 . 1 1 . 2 . . . . Energy Cannon 7 | . . . . . . . . . . . 2 2 3 Ballistic Gun 11 | . . 2 . 1 2 . . 2 1 . . 3 . Ballistic Cannon 9 | . . . . . 2 1 4 . . . 2 . . Launcher 2 | . . . . . . . 1 . . . 1 . . Special Weapon . | . . . . . . . . . . . . . . Impact Weapon 2 | . . . . . . 1 . . . . . 1 . Slashing Weapon . | . . . . . . . . . . . . . . Piercing Weapon . | . . . . . . . . . . . . . . Special Melee Weapon . | . . . . . . . . . . . . . . Unidentified Prototypes 6 | . . . . . . . . . 3 . 1 1 1 Parts Lost 57 | . . . . 1 4 5 10 5 . . 17 8 7 Power 7 | . . . . . . . 1 1 . . 2 2 1 Propulsion 26 | . . . . 1 3 3 6 1 . . 7 3 2 Utility 15 | . . . . . 1 . 2 2 . . 5 2 3 Weapon 9 | . . . . . . 2 1 1 . . 3 1 1 Highest Loss Streak 7 | . . . . 1 3 5 7 3 . . 7 5 5 To Critical Strikes 1 | . . . . . . . . . . . 1 . . Average Backups 21 | 2 5 9 15 19 19 23 22 23 23 24 18 20 23 Power 2 | . . . 2 1 1 2 2 2 2 3 3 3 3 Propulsion 3 | 1 2 2 4 6 5 7 4 3 4 5 1 . . Utility 9 | . 1 2 5 6 7 7 8 8 8 8 8 12 13 Weapon 4 | 1 2 2 3 4 4 4 4 6 7 7 4 2 5 Tool/Special . | . . . . . . . . . . . . . . Unused Backups 65 | 1 1 . . . . 1 11 4 6 2 2 8 29 Power 14 | . . . . . . . 1 2 2 2 . 3 4 Propulsion 10 | . . . . . . . 3 2 1 . . 3 1 Utility 21 | . 1 . . . . . 3 . . . . 1 16 Weapon 14 | 1 . . . . . 1 2 . 1 . 2 . 7 Tool/Special 6 | . . . . . . . 2 . 2 . . 1 1 Average Slot Usage (%) 89 | . 14 70 85 99 98 92 94 85 86 86 85 88 94 Engine 7 | . 14 14 14 14 9 7 7 9 5 . 7 5 . Core 4 | . . . . . . 3 4 2 . . . 10 14 Reactor 1 | . . . . . . . . . 6 13 4 . . Treads 3 | . . . . 5 . . 3 7 6 6 . 4 . Leg 5 | . . . . 16 22 4 5 . . . 17 3 2 Wheel 9 | . . 21 28 5 12 20 19 12 13 13 3 . . Hover 4 | . . . . . . 2 . . . . . 11 24 Device 13 | . . . . . 12 15 18 19 20 20 21 10 13 Storage 6 | . . 9 14 14 9 7 6 6 6 6 6 5 5 Processor 8 | . . . . . 8 14 6 2 6 6 6 16 15 Protection 4 | . . . . 13 5 . 5 10 6 6 2 . . Energy Gun 3 | . . . . 13 4 2 6 1 1 6 3 1 . Energy Cannon 2 | . . . . . . . . . . . 1 4 14 Ballistic Gun 5 | . . 24 28 14 6 . . 4 6 6 2 2 . Ballistic Cannon 3 | . . . . . 7 11 5 6 4 . 3 . . Peak Build Rating 114 | 3 1 8 9 12 17 35 56 70 92 92 94 94 114 Average Rating 58 | . 1 6 8 11 15 23 44 65 78 92 73 77 106 On Entrance 37 | . 1 1 8 9 12 15 29 56 70 92 92 49 94 Avg Prop Armor Cover (%) 6 | . . . . 10 6 6 6 5 5 5 6 15 5 Naked Turns . | . . . . . . . . . . . . . . Heaviest Build 146 | 3 3 90 90 97 98 108 128 132 146 143 143 133 143 Greatest Support 99 | 3 3 20 20 23 43 42 40 56 56 56 99 53 68 Greatest Overweight (x) 38 | . . 4 4 9 2 10 38 4 2 2 5 8 3 Average Overweight (x) 2 | . . 2 4 6 2 2 2 2 2 2 2 3 2 Largest Inventory Capacity 25 | 5 5 25 25 25 25 25 25 25 25 25 25 25 25 Average Capacity 24 | 5 5 20 25 25 25 25 25 25 25 25 25 25 25 Most Carried 25 | 5 5 15 17 25 24 25 25 25 25 25 25 25 25 Average Carried 22 | 3 4 9 15 20 20 24 23 24 24 25 19 21 24 Final Capacity 25 | 5 5 25 25 25 25 25 25 25 25 25 25 25 25 Final Carried 25 | 5 5 15 17 24 24 25 25 25 25 25 24 25 25 Class Distribution -------------------- 66% | Scavenger-Mutant 16% | Scavenger-Gunner 10% | Commander-Mutant 7% | Mutant Dominant Class ---------------- Mutant | -10/Materials Mutant | -10/Mines Mutant | -10/Exiles Scavenger-Mutant | -9/Mines Scavenger-Mutant | -8/Materials Scavenger-Mutant | -7/Factory Scavenger-Mutant | -6/Factory Scavenger-Mutant | -6/Extension Commander-Mutant | -6/Cetus Scavenger-Mutant | -6/Archives Scavenger-Mutant | -6/Hub_04(d) Scavenger-Mutant | -5/Factory Scavenger-Gunner | -4/Factory Resources | -11 -10 -10 -10 -9 -8 -7 -6 -6 -6 -6 -6 -5 -4 ----------- Run | Yrd Mat Min Exi Min Mat Fac Fac Ext Cet Arc Hub Fac Fac Matter Collected 4396 | 224 6 100 . 241 331 158 588 1079 218 22 713 418 298 Remotely 323 | . . . . . 323 . . . . . . . . Salvage Created 6440 | . . 135 . 620 489 192 910 907 49 72 1525 810 731 Parts 318 | . . 13 . 46 28 17 31 31 2 6 62 48 34 Haulers Intercepted 4 | . . . . . . . 1 . . . 2 . 1 Recyclers Shooed 10 | . . 1 . . 1 1 3 4 . . . . . Parts Field Recycled . | . . . . . . . . . . . . . . Retrieved Matter . | . . . . . . . . . . . . . . Parts Self-Destructed . | . . . . . . . . . . . . . . Prevented . | . . . . . . . . . . . . . . Parts Restored . | . . . . . . . . . . . . . . Kills | -11 -10 -10 -10 -9 -8 -7 -6 -6 -6 -6 -6 -5 -4 ------- Run | Yrd Mat Min Exi Min Mat Fac Fac Ext Cet Arc Hub Fac Fac Combat Hostiles Destroyed 110 | . . 2 . 16 10 3 17 12 1 1 24 17 7 Melee 2 | . . . . . . . . . . . . 2 . Guns 44 | . . 2 . 16 4 . 3 4 1 1 10 3 . Cannons 51 | . . . . . 6 3 8 7 . . 11 9 7 AOE 5 | . . . . . . . 2 . . . 3 . . Classes Destroyed 17 | . . 2 . 6 1 2 2 2 . . 2 . . Worker 9 | . . 1 . 2 1 1 2 . . . 1 1 . Builder 6 | . . . . 1 1 2 1 . . . 1 . . Hauler 4 | . . . . . . . 1 . . . 2 . 1 Recycler 6 | . . . . 2 . 1 . 3 . . . . . Mechanic 1 | . . . . . 1 . . . . . . . . Operator 4 | . . . . . . . . 2 . . 1 . 1 Watcher 10 | . . . . . . 1 2 1 . . 2 . 4 Swarmer 23 | . . . . 9 . . 3 3 . . 3 5 . Grunt 33 | . . . . 4 8 . 9 3 . . 8 1 . Brawler 2 | . . . . 2 . . . . . . . . . Duelist 2 | . . . . 1 . . . 1 . . . . . Sentry 18 | . . 2 . . 2 1 . 3 . 1 5 1 3 Specialist 4 | . . . . . . . . . . . 4 . . Hunter 9 | . . . . . . . 2 1 . . 2 2 2 Programmer 16 | . . . . . . 2 3 . . . 1 8 2 Heavy 1 | . . . . . . . . . . . 1 . . Behemoth 1 | . . . . . . . . 1 . . . . . Cetus Guard 1 | . . . . . . . . . 1 . . . . Savage 2 | . . . . . . . . . . . 2 . . Best Kill Streak 10 | . . 2 . 5 6 5 7 4 1 1 10 5 3 Combat Bots Only 6 | . . 2 . 3 6 2 5 3 1 1 5 5 2 Max Kills in Single Turn 2 | . . 1 . 2 1 1 2 1 1 1 2 1 2 Gunslinging 1 | . . . . 1 . . . . . . . . . Exploded 2 | . . . . . . . 1 . . . 2 . . Melee 1 | . . . . . . . . . . . . 1 . Uniques/NPCs Destroyed . | . . . . . . . . . . . . . . Combat | -11 -10 -10 -10 -9 -8 -7 -6 -6 -6 -6 -6 -5 -4 -------- Run | Yrd Mat Min Exi Min Mat Fac Fac Ext Cet Arc Hub Fac Fac Hostile Shots Fired 1256 | . . 8 . 99 80 99 150 251 23 . 301 167 78 Missed 420 | . . 2 . 30 24 38 49 95 10 . 108 49 15 Hits 836 | . . 6 . 69 56 61 101 156 13 . 193 118 63 Melee 8 | . . . . 5 . . . 3 . . . . . Projectile 828 | . . 6 . 64 56 61 101 153 13 . 193 118 63 Critical Strikes 34 | . . . . 1 3 1 6 1 3 1 10 6 2 Damage Taken 11565 | . . 71 . 532 688 410 1523 1315 180 20 2814 1680 2332 Core 2400 | . . 21 . 92 98 81 166 161 18 . 324 170 1269 Absorbed by Shields 423 | . . . . . . . . 326 97 . . . . Ignored by Resistances 3084 | . . 20 . 168 194 130 429 502 76 5 731 476 353 Regen/Repaired (Parts) 625 | . . . . . . . 32 . . . . 455 138 Core Remaining (%) 71 | 100 . . . 54 82 88 . . . . 21 83 . Volleys Fired 442 | . . 6 1 55 50 29 63 73 13 3 83 33 33 Largest 3 | . . 2 2 2 2 2 2 2 2 2 2 3 3 Hottest 293 | . . 40 40 76 76 109 119 119 72 115 155 210 293 Shots Fired 859 | . . 12 2 110 91 38 114 145 26 5 156 70 90 Gun 429 | . . 12 2 110 53 7 51 72 13 5 79 25 . Cannon 417 | . . . . . 38 31 53 73 13 . 74 45 90 Launcher 13 | . . . . . . . 10 . . . 3 . . Special . | . . . . . . . . . . . . . . Kinetic 496 | . . 12 2 66 77 31 53 120 26 3 81 25 . Thermal 328 | . . . . 44 14 7 51 25 . 2 50 45 90 Explosive 3 | . . . . . . . . . . . 3 . . Electromagnetic 32 | . . . . . . . 10 . . . 22 . . Robot Hit Streak 35 | . . 11 . 20 27 22 35 28 11 3 23 14 21 Robot Miss Streak 4 | . . . . 4 2 1 1 3 4 1 2 2 2 Penetration Max 1 | . . . . . . . . . . 1 1 1 . Secondary Targets 10 | . . 1 . 6 2 . . . . . 1 . . Max Gunslinging Chain 1 | . . 1 . 1 1 . . . . . 1 . . Shots Hit Robots 667 | . . 11 . 78 75 30 98 118 20 4 111 59 63 Core Hits 328 | . . 7 . 36 34 13 39 69 24 3 54 25 24 Critical Kills 9 | . . . . 1 . . . . . 1 6 1 . Critical Parts Destroyed 18 | . . . . 1 1 . . . . . 13 3 . Critical Strikes 57 | . . . . 5 5 . 12 10 . 1 20 4 . Burn 14 | . . . . 3 . . 8 3 . . . . . Destroy 24 | . . . . 2 1 . . . . 1 20 . . Blast 15 | . . . . . 4 . 4 7 . . . . . Smash 4 | . . . . . . . . . . . . 4 . Melee Attacks 28 | . . . . . . 5 . . . . . 23 . Impact 28 | . . . . . . 5 . . . . . 23 . Slashing . | . . . . . . . . . . . . . . Piercing . | . . . . . . . . . . . . . . Sneak Attacks 1 | . . . . . . . . . . . . 1 . Combat Hostiles . | . . . . . . . . . . . . . . Follow-up Attacks . | . . . . . . . . . . . . . . Damage Inflicted 17342 | . . 118 . 918 997 601 2918 2995 603 135 3762 1954 2341 Guns 6649 | . . 118 . 918 450 131 1080 1424 262 135 1863 268 . Cannons 8045 | . . . . . 538 470 1163 1551 341 . 1025 780 2177 Explosions 1713 | . . . . . . . 675 . . . 874 . 164 Melee 906 | . . . . . . . . . . . . 906 . Ramming 29 | . . . . . 9 . . 20 . . . . . Kinetic 7781 | . . 118 . 368 814 470 1163 2511 603 104 1362 268 . Thermal 6984 | . . . . 550 174 131 1163 464 . 31 1350 780 2341 Explosive 663 | . . . . . . . . . . . 663 . . Electromagnetic 979 | . . . . . . . 592 . . . 387 . . Impact 906 | . . . . . . . . . . . . 906 . Slashing . | . . . . . . . . . . . . . . Piercing . | . . . . . . . . . . . . . . Highest Corruption 16 | . . . . . . 1 1 2 2 2 16 6 1 Average Corruption 2 | . . . . . . 1 1 1 2 2 7 4 1 Corruption Purged 1 | . . . . . . . . 1 . . . . . Corruption Blocked . | . . . . . . . . . . . . . . Effects 77 | . . . . . . . 1 10 5 4 23 28 6 Message Errors 19 | . . . . . . . . 2 1 2 6 8 . Matter Fused 20 | . . . . . . . 1 3 2 1 8 4 1 Heat Flow Errors 8 | . . . . . . . . . 1 . 2 2 3 Energy Discharges 13 | . . . . . . . . 1 . . 3 8 1 Parts Rejected 2 | . . . . . . . . 1 1 . . . . Parts Fused 2 | . . . . . . . . . . . 1 1 . Data Loss (minor) 6 | . . . . . . . . 1 . 1 2 2 . Data Loss (major) 2 | . . . . . . . . 1 . . . 1 . Misfires 3 | . . . . . . . . 1 . . 1 1 . Weapon Failures 2 | . . . . . . . . . . . . 1 1 Overload Shots . | . . . . . . . . . . . . . . Overflow Damage 447 | . . . . . . . 41 41 . . 46 269 50 Projectiles 90 | . . . . . . . 15 41 . . 11 4 19 Explosions 92 | . . . . . . . 26 . . . 35 . 31 Melee 265 | . . . . . . . . . . . . 265 . Knockbacks 40 | . . . . . 6 4 18 5 2 . 4 1 . Impact 1 | . . . . . . . . . . . . 1 . Kinetic 36 | . . . . . 5 4 17 5 2 . 3 . . Secondary 3 | . . . . . 1 . 1 . . . 1 . . Self-Inflicted Damage 169 | . . . . . 4 . 74 . . . 77 . 14 Shots 10 | . . . . . . . 8 . . . 1 . 1 Rammed 4 | . . . . . 1 . . 3 . . . . . Targets Rammed 4 | . . . . . 1 . . 3 . . . . . Kicked . | . . . . . . . . . . . . . . Crushed . | . . . . . . . . . . . . . . Highest Temperature 1272 | . . 9 2 420 351 . 165 219 158 . 119 336 1272 Average Temperature 153 | . . 4 1 121 175 . 47 60 87 . 48 122 269 Received Heat Transfer 2572 | . . 27 . 66 513 114 493 421 8 27 651 144 108 Effects 41 | . . . . 2 7 . . . . . . . 32 Shutdowns 17 | . . . . 1 1 . . . . . . . 15 Energy Bleed 3 | . . . . 1 . . . . . . . . 2 Interference 8 | . . . . . 6 . . . . . . . 2 Matter Decay 3 | . . . . . . . . . . . . . 3 Short Circuit 3 | . . . . . . . . . . . . . 3 Damage (minor) 1 | . . . . . . . . . . . . . 1 Damage (core) 6 | . . . . . . . . . . . . . 6 Siege Activations . | . . . . . . . . . . . . . . Martial Activations . | . . . . . . . . . . . . . . Shielding Activations . | . . . . . . . . . . . . . . Robots Disrupted . | . . . . . . . . . . . . . . Combat Hostiles . | . . . . . . . . . . . . . . Robots Corrupted 6 | . . . . . . . 3 . . . . 3 . Combat Hostiles 6 | . . . . . . . 3 . . . . 3 . Parts Fried 8 | . . . . . . . 2 . . . 3 3 . Impact Corruptions 7 | . . . . . . . . . . . . 7 . Robots Melted 2 | . . . . . . . 1 1 . . . . . Combat Hostiles 2 | . . . . . . . 1 1 . . . . . Parts Melted 23 | . . . . 5 1 . 2 6 . . 1 3 5 Heat Transferred 12510 | . . . . 1628 444 259 3300 1350 . 37 1660 1100 2732 Parts Sabotaged . | . . . . . . . . . . . . . . Parts Stolen . | . . . . . . . . . . . . . . Parts Stripped . | . . . . . . . . . . . . . . Power Chain Reactions 2 | . . . . . . . 1 . . . 1 . . Alert | -11 -10 -10 -10 -9 -8 -7 -6 -6 -6 -6 -6 -5 -4 ------- Run | Yrd Mat Min Exi Min Mat Fac Fac Ext Cet Arc Hub Fac Fac Maximum Alert Level 3 | . . . . . . . 1 2 1 . 3 1 . Low Security (%) 76 | 100 100 100 . 100 100 100 96 49 18 100 7 90 100 Level 1 14 | . . . . . . . 3 39 81 . 13 9 . Level 2 6 | . . . . . . . . 10 . . 54 . . Level 3 1 | . . . . . . . . . . . 24 . . Level 4 . | . . . . . . . . . . . . . . Level 5 . | . . . . . . . . . . . . . . High Security . | . . . . . . . . . . . . . . Max Security . | . . . . . . . . . . . . . . Peak Influence 808 | . 15 40 . 84 121 47 202 432 392 132 808 299 152 Initial 299 | . . . . . . 39 . 17 174 111 . 299 32 Average 126 | . 2 11 . 27 23 12 80 184 289 53 548 62 44 Influence Increases 5700 | . 15 45 . 414 276 131 561 1390 497 121 1351 501 398 Destroy 0b10 Robot/C 3240 | . . 40 . 320 200 60 340 820 280 80 620 340 140 Destroy 0b10 Robot/NC 235 | . . 5 . 25 15 25 30 50 10 . 40 5 30 Destroy Leader 654 | . . . . 60 30 32 96 116 20 . 170 70 60 Allied During Kill 543 | . . . . . . . . 301 154 40 48 . . Successful Hack 189 | . . . . . . 10 22 50 16 . . 40 51 Disable Machine 189 | . . . . 9 . . . 18 . . 99 18 45 Anti-Garrison Action 200 | . . . . . . . . . . . 200 . . Destroy Structure 330 | . . . . . 1 4 13 20 17 1 174 28 72 Partial Spotted 30 | . 15 . . . . . 15 . . . . . . Lose Combat Pursuer 90 | . . . . . 30 . 45 15 . . . . . Influence Decreases 5691 | . 15 45 . 414 175 232 519 1075 523 452 642 1132 467 Entered New Map 946 | . . . . . . 62 . 25 183 220 . 410 46 Time Decay 3810 | . 15 45 . 404 150 129 419 855 220 152 392 668 361 Lost Part 495 | . . . . 10 25 41 100 35 . . 170 54 60 Lost Ally 440 | . . . . . . . . 160 120 80 80 . . Squads Dispatched 30 | . . . . . . 1 5 2 2 . 9 6 5 Investigation 6 | . . . . . . . . . 2 . 3 . 1 Extermination 11 | . . . . . . 1 3 . . . 1 4 2 Reinforcement 12 | . . . . . . . 2 2 . . 5 2 1 Assault . | . . . . . . . . . . . . . . Garrison 1 | . . . . . . . . . . . . . 1 Intercept . | . . . . . . . . . . . . . . Searches Triggered . | . . . . . . . . . . . . . . Construction Impeded 2 | . . . . . . . 1 . . . 1 . . Haulers Reinforced 2 | . . . . . . . 1 . . . . 1 . Active Scanning Responses . | . . . . . . . . . . . . . . Cargo Convoy Interrupts . | . . . . . . . . . . . . . . Stealth | -11 -10 -10 -10 -9 -8 -7 -6 -6 -6 -6 -6 -5 -4 --------- Run | Yrd Mat Min Exi Min Mat Fac Fac Ext Cet Arc Hub Fac Fac Distress Signals 10 | . 1 . . . 3 . . 1 2 . 3 . . Communications Jammed . | . . . . . . . . . . . . . . Distress Signals . | . . . . . . . . . . . . . . Times Spotted 205 | . 2 2 . 17 16 6 27 46 16 3 40 18 12 Peak Tracking Total 9 | . 1 2 . 3 7 2 6 6 6 2 9 5 4 Tactical Retreats 5 | . . . . . 1 . 3 1 . . . . . Traps | -11 -10 -10 -10 -9 -8 -7 -6 -6 -6 -6 -6 -5 -4 ------- Run | Yrd Mat Min Exi Min Mat Fac Fac Ext Cet Arc Hub Fac Fac Traps Triggered 13 | . . . . . . . 1 8 . . 1 . 3 Indirectly 1 | . . . . . . . . . . . 1 . . Trap Hack Attempts . | . . . . . . . . . . . . . . Triggered . | . . . . . . . . . . . . . . Disarmed . | . . . . . . . . . . . . . . Reprogrammed . | . . . . . . . . . . . . . . Reused . | . . . . . . . . . . . . . . Traps Extracted . | . . . . . . . . . . . . . . Installed . | . . . . . . . . . . . . . . Triggered . | . . . . . . . . . . . . . . Machines | -11 -10 -10 -10 -9 -8 -7 -6 -6 -6 -6 -6 -5 -4 ---------- Run | Yrd Mat Min Exi Min Mat Fac Fac Ext Cet Arc Hub Fac Fac Machines Disabled 26 | . . . . 1 . . . 6 1 . 11 2 5 Max in Single Turn 5 | . . . . 1 . . . 1 . . 5 1 4 Garrison Access 2 | . . . . . . . . . . . 1 . 1 Network Hub 1 | . . . . . . . . . . . 1 . . Machines Repaired . | . . . . . . . . . . . . . . Machines Dismantled . | . . . . . . . . . . . . . . Machines Sabotaged . | . . . . . . . . . . . . . . Overloaded Fab Kills . | . . . . . . . . . . . . . . Hacking | -11 -10 -10 -10 -9 -8 -7 -6 -6 -6 -6 -6 -5 -4 --------- Run | Yrd Mat Min Exi Min Mat Fac Fac Ext Cet Arc Hub Fac Fac Machines Accessed 45 | . 2 . . 1 1 2 7 15 3 1 2 5 6 Terminals 29 | . 2 . . 1 . . 3 15 3 . 1 2 2 Fabricators 5 | . . . . . . 1 2 . . . . 1 1 Repair Stations 6 | . . . . . 1 . 1 . . . . 2 2 Recycling Units . | . . . . . . . . . . . . . . Scanalyzers 2 | . . . . . . 1 1 . . . . . . Garrison Access 2 | . . . . . . . . . . . 1 . 1 Total Hacks 110 | . 4 . . 1 3 3 11 27 11 3 7 26 14 Successful 65 | . 2 . . 1 1 2 8 15 4 3 1 20 8 Failed 45 | . 2 . . . 2 1 3 12 7 . 6 6 6 Catastrophic 10 | . . . . . . . . . 4 . 2 3 1 Database Lockouts . | . . . . . . . . . . . . . . Manual 30 | . 2 . . . . . 1 6 1 1 5 7 7 Terminals 69 | . 4 . . 1 . . 4 27 11 . 3 12 7 Fabricators 8 | . . . . . . 1 3 . . . . 2 2 Repair Stations 20 | . . . . . 3 . 2 . . . . 12 3 Recycling Units . | . . . . . . . . . . . . . . Scanalyzers 4 | . . . . . . 2 2 . . . . . . Garrison Access 6 | . . . . . . . . . . . 4 . 2 Terminal Hacks 29 | . 2 . . 1 . . 2 12 4 3 . 5 . Record 8 | . . . . . . . 1 . 4 3 . . . Robot Analysis 1 | . 1 . . . . . . . . . . . . Prototype ID Bank 1 | . . . . . . . . . . . . 1 . Open Door 11 | . . . . . . . 1 10 . . . . . Terminal Index 1 | . . . . . . . . 1 . . . . . Alert Level 3 | . 1 . . . . . . 1 . . . 1 . Security Status 1 | . . . . . . . . . . . . 1 . Recall Investigation 1 | . . . . . . . . . . . . 1 . Zone Layout 2 | . . . . 1 . . . . . . . 1 . Fabricator Hacks 6 | . . . . . . 1 2 . . . . 1 2 Network Status 5 | . . . . . . 1 2 . . . . 1 1 Build 1 | . . . . . . . . . . . . . 1 Repair Station Hacks 18 | . . . . . 1 . 2 . . . . 12 3 Scan Component 10 | . . . . . 1 . 1 . . . . 6 2 Repair 8 | . . . . . . . 1 . . . . 6 1 Recycling Unit Hacks . | . . . . . . . . . . . . . . Scanalyzer 3 | . . . . . . 1 2 . . . . . . Insert Component 1 | . . . . . . 1 . . . . . . . Retrieve Study 2 | . . . . . . . 2 . . . . . . Garrison Access Hacks 1 | . . . . . . . . . . . . . 1 Seal Access 1 | . . . . . . . . . . . . . 1 Unauthorized Hacks 8 | . . . . . . . . 3 . . 1 2 2 Terminals 7 | . . . . . . . . 3 . . . 2 2 Botnet 6 | . . . . . . . . 3 . . . 1 2 Operators 1 | . . . . . . . . . . . . 1 . Fabricators . | . . . . . . . . . . . . . . Repair Stations . | . . . . . . . . . . . . . . Recycling Units . | . . . . . . . . . . . . . . Scanalyzers . | . . . . . . . . . . . . . . Garrison Access 1 | . . . . . . . . . . . 1 . . Jam 1 | . . . . . . . . . . . 1 . . Data Cores Recovered 1 | . . . . . . . . . . . . . 1 Used 1 | . . . . . . . . . . . . . 1 Hacking Detections 30 | . 1 . . 1 1 2 3 10 3 . 2 4 3 Full Trace Events 5 | . 1 . . . . . . . 2 . 1 . 1 Feedback Events . | . . . . . . . . . . . . . . Feedback Blocked . | . . . . . . . . . . . . . . Robot Schematics Acquired . | . . . . . . . . . . . . . . Robots Built . | . . . . . . . . . . . . . . Authchips . | . . . . . . . . . . . . . . Time . | . . . . . . . . . . . . . . Total Robot Build Rating . | . . . . . . . . . . . . . . Part Schematics Acquired . | . . . . . . . . . . . . . . Parts Built . | . . . . . . . . . . . . . . Authchips . | . . . . . . . . . . . . . . Time 139 | . . . . . . . . . . . . . 139 Total Part Build Rating . | . . . . . . . . . . . . . . Part Studies Acquired 2 | . . . . . . . 2 . . . . . . Parts Repaired 7 | . . . . . . . 1 . . . . 5 1 Time 286 | . . . . . . . 19 . . . . 251 16 Parts Recycled . | . . . . . . . . . . . . . . Recycled Matter . | . . . . . . . . . . . . . . Retrieved Matter . | . . . . . . . . . . . . . . Retrieved Components . | . . . . . . . . . . . . . . Parts Scanalyzed 1 | . . . . . . 1 . . . . . . . Part Schematics Acquired . | . . . . . . . . . . . . . . Parts Damaged . | . . . . . . . . . . . . . . Bothacking | -11 -10 -10 -10 -9 -8 -7 -6 -6 -6 -6 -6 -5 -4 ------------ Run | Yrd Mat Min Exi Min Mat Fac Fac Ext Cet Arc Hub Fac Fac Used RIF Installer . | . . . . . . . . . . . . . . Robots Hacked . | . . . . . . . . . . . . . . Non-combat . | . . . . . . . . . . . . . . Combat . | . . . . . . . . . . . . . . Robot Hacks Applied . | . . . . . . . . . . . . . . Relay Couplers Released . | . . . . . . . . . . . . . . Fabnet Peak Effective % . | . . . . . . . . . . . . . . Robots Rewired 14 | . . . . . . . . 14 . . . . . Allies Hacked . | . . . . . . . . . . . . . . Hacks Repelled . | . . . . . . . . . . . . . . Allies | -11 -10 -10 -10 -9 -8 -7 -6 -6 -6 -6 -6 -5 -4 -------- Run | Yrd Mat Min Exi Min Mat Fac Fac Ext Cet Arc Hub Fac Fac Total Allies 32 | . . . . . . . . 27 5 . . . . Largest Group 20 | . . . . . . . . 17 20 11 6 . . Highest-Rated Group 1002 | . . . . . . . . 595 1002 611 350 . . Highest-Rated Ally 159 | . . . . . . . . 159 159 159 96 . . Total Orders 3 | . . . . . . . . . . . 3 . . ROAM 3 | . . . . . . . . . . . 3 . . Ally Attacks 331 | . . . . . . . . 200 77 21 33 . . Total Damage 8714 | . . . . . . . . 4696 2193 558 1267 . . Kills 62 | . . . . . . . . 35 16 3 8 . . Allies Corrupted . | . . . . . . . . . . . . . . Allies Melted 1 | . . . . . . . . . . . 1 . . Intel | -11 -10 -10 -10 -9 -8 -7 -6 -6 -6 -6 -6 -5 -4 ------- Run | Yrd Mat Min Exi Min Mat Fac Fac Ext Cet Arc Hub Fac Fac Active Infowar (turns) 5006 | . . . . . . . . 716 447 411 323 2001 1108 Optics 3109 | . . . . . . . . . . . . 2001 1108 Sensors 1897 | . . . . . . . . 716 447 411 323 . . Machine Analysis 128 | . . . . . . . . . . . . . 128 Robot Analysis Total 1 | . 1 . . . . . . . . . . . . Derelict Logs Recovered 2 | . . . . 2 . . . . . . . . . Drone Launches . | . . . . . . . . . . . . . . Drone Recoveries . | . . . . . . . . . . . . . . Exploration | -11 -10 -10 -10 -9 -8 -7 -6 -6 -6 -6 -6 -5 -4 ------------- Run | Yrd Mat Min Exi Min Mat Fac Fac Ext Cet Arc Hub Fac Fac Turns Passed 10650 | 36 112 169 367 1076 445 457 1141 2028 447 411 847 2006 1108 Spaces Moved 5265 | 48 220 115 260 290 157 269 717 1125 284 266 269 673 572 Core 305 | 48 220 36 . . . . 1 . . . . . . Treads 93 | . . . . . . . . 12 . . . 81 . Legs 365 | . . . . 157 58 . . . . . 150 . . Wheels 3417 | . . 79 260 133 99 269 716 1113 284 266 119 79 . Hover 1085 | . . . . . . . . . . . . 513 572 Flight . | . . . . . . . . . . . . . . Fastest Speed 50 | 50 50 50 140 200 123 110 100 130 130 130 130 162 91 Average Speed 156 | 50 50 111 140 303 173 130 121 133 130 130 200 233 156 Slowest Speed 1950 | 50 50 140 140 400 260 230 1950 400 130 130 322 405 230 Overloaded Moves . | . . . . . . . . . . . . . . Propulsion Burnouts . | . . . . . . . . . . . . . . Robots Hopped . | . . . . . . . . . . . . . . Potential Cave-ins . | . . . . . . . . . . . . . . Cave-ins Triggered 1 | . . . . . . . . . . . 1 . . Exploration Rate (%) 40 | 3 31 19 66 55 20 8 27 94 69 95 40 19 15 Regions Visited 13 Branch Regions 7 Pre-discovered Areas . | . . . . . . . . . . . . . . Known Exits Taken 6 | . . . . . 1 . . 1 1 1 1 1 . Unknown Exits Taken 7 | 1 1 1 1 1 . 1 1 . . . . . . Scrap Searched 2 | . . . . 2 . . . . . . . . . Spaces Dug 35 | . . . . . . 1 1 1 . . 13 16 3 Terrain Destroyed 320 | . . . . . . 3 12 10 . 1 241 22 31 Melee 1 | . . . . . . 1 . . . . . . . Projectile 92 | . . . . . . 2 8 10 . 1 32 22 17 AOE 227 | . . . . . . . 4 . . . 209 . 14 Terrain Rammed . | . . . . . . . . . . . . . . Walls Destroyed . | . . . . . . . . . . . . . . Machines Disabled . | . . . . . . . . . . . . . . Actions | -11 -10 -10 -10 -9 -8 -7 -6 -6 -6 -6 -6 -5 -4 --------- Run | Yrd Mat Min Exi Min Mat Fac Fac Ext Cet Arc Hub Fac Fac Total 6863 | 60 221 146 261 391 245 325 883 1509 338 329 422 1010 723 Wait 519 | . . . . 11 5 . 23 118 26 57 29 208 42 Move 5252 | 47 219 114 259 289 156 268 716 1124 283 265 268 672 572 Hop . | . . . . . . . . . . . . . . Pick Up 142 | 7 1 15 1 16 13 6 20 10 3 2 15 24 9 Fast Attach 34 | . . . . . . 4 6 6 1 . 2 9 6 Attach 58 | 3 . 7 . 2 7 4 8 2 . . 14 10 1 Detach 5 | 2 . 2 . . . . . . . . 1 . . Swap 103 | . . 1 . 9 7 6 20 19 6 . 5 16 14 Drop 119 | 1 1 1 . 9 6 3 27 23 6 2 5 15 20 Fire 442 | . . 6 1 55 50 29 63 73 13 3 83 33 33 Melee 28 | . . . . . . 5 . . . . . 23 . Ram 1 | . . . . . 1 . . . . . . . . Kick . | . . . . . . . . . . . . . . Crush 3 | . . . . . . . . 3 . . . . . Escape Stasis 76 | . . . . . . . . 50 . . . . 26 Rewire 81 | . . . . . . . . 81 . . . . . Trap . | . . . . . . . . . . . . . . Miscellaneous . | . . . . . . . . . . . . . . Route ------- -11/Scrapyard -10/Materials -10/Mines (discovered 2 exits: [*Mat] / *Exi) -10/Exiles -9/Mines -8/Materials (discovered 3 exits: *Fac x3) -7/Factory -6/Factory -6/Extension (discovered 3 exits: *Fac x2 / *Cet) -6/Cetus (discovered 2 exits: *Fac / *Arc) -6/Archives (discovered 3 exits: *Fac / *Hub x2) -6/Hub_04(d) (discovered 2 exits: *Fac x2) -5/Factory -4/Factory History --------- Turn | Location | Event 4 | -11/Scrapyard | Discovered new exit (range 14) 37 | -11/Scrapyard | Entered Materials 111 | -10/Materials | Discovered new exit (range 6) 149 | -10/Materials | Entered Mines 163 | -10/Mines | Discovered new exit (range 6) 306 | -10/Mines | Build established: Mutant 312 | -10/Mines | Deemed a non-threat by the Exiles lab entrance 312 | -10/Mines | Discovered new exit (range 5) 318 | -10/Mines | Entered Exiles 356 | -10/Exiles | Met 8R-AWN 384 | -10/Exiles | Met EX-HEX 439 | -10/Exiles | Met EX-BIN 500 | -10/Exiles | Met EX-DEC 658 | -10/Exiles | Discovered new exit (range 15) 685 | -10/Exiles | Entered Mines 1013 | -9/Mines | Build established: Scavenger-Mutant 1518 | -9/Mines | Learned Materials emergency access door positions 1590 | -9/Mines | Learned location of 2 exits from Materials 1717 | -9/Mines | Discovered new exit (range 9) 1761 | -9/Mines | Entered Materials 1761 | -8/Materials | Evolved 4 slots: Propulsion x2, Utility x2 1762 | -8/Materials | Identified exit to Factory 2007 | -8/Materials | Lost 3 parts (3n) 2199 | -8/Materials | Discovered exit to Factory (range 4) 2206 | -8/Materials | Entered Factory 2206 | -7/Factory | Evolved 2 slots: Power x1, Utility x1 2554 | -7/Factory | Lost 5 parts (3n2w) 2641 | -7/Factory | Discovered new exit (range 11) 2663 | -7/Factory | Entered another Factory area 2663 | -6/Factory | Evolved 2 slots: Propulsion x1, Utility x1 2926 | -6/Factory | Repaired Imp. Heat Sink 3476 | -6/Factory | Lost 7 parts (1p4n1u1w) 3799 | -6/Factory | Discovered new exit (range 6) 3804 | -6/Factory | Entered Extension 3949 | -6/Extension | Rescued a captive Derelict 4094 | -6/Extension | Rescued A7 4164 | -6/Extension | Lost 3 allies 4394 | -6/Extension | Rescued a captive Derelict 4396 | -6/Extension | Rescued a captive Derelict 4414 | -6/Extension | Rescued a captive Derelict 4415 | -6/Extension | Rescued a captive Derelict 4436 | -6/Extension | Rescued a captive Derelict 4604 | -6/Extension | Disrupted transfer network 4632 | -6/Extension | Disrupted transfer network 4759 | -6/Extension | Spotted B-75 Beast 4786 | -6/Extension | Allies destroyed B-75 Beast 4805 | -6/Extension | Spotted B-75 Beast 4815 | -6/Extension | Destroyed B-75 Beast 4845 | -6/Extension | Lost 3 parts (1p2u) 4848 | -6/Extension | Lost 6 allies 4869 | -6/Extension | Rescued a captive Derelict 4924 | -6/Extension | Discovered new exit (range 3) 4928 | -6/Extension | Identified exit to Factory 5092 | -6/Extension | Discovered exit to Factory (range 16) 5092 | -6/Extension | Discovered new exit (range 16) 5138 | -6/Extension | Identified exit to Cetus 5248 | -6/Extension | Rescued a captive Derelict 5250 | -6/Extension | Rescued a captive Derelict 5320 | -6/Extension | Rescued a captive Derelict 5323 | -6/Extension | Rescued a captive Derelict 5342 | -6/Extension | Rescued a captive Derelict 5497 | -6/Extension | Build established: Commander-Mutant 5832 | -6/Extension | Entered Cetus 5832 | -6/Cetus | Accompanied by 17 allies (A7) 5837 | -6/Cetus | Acquired a Cetus Manufacturing Module code from A7 5849 | -6/Cetus | Spotted Cetus Guard 5850 | -6/Cetus | Spotted Cetus Guard 5850 | -6/Cetus | Allies destroyed Cetus Guard 5852 | -6/Cetus | Spotted Cetus Guard 5858 | -6/Cetus | Spotted Cetus Guard 5864 | -6/Cetus | Destroyed Cetus Guard 5865 | -6/Cetus | Allies destroyed Cetus Guard 5873 | -6/Cetus | Allies destroyed Cetus Guard 5959 | -6/Cetus | Started Cetus Manufacturing Module 5984 | -6/Cetus | Manufactured an Enhanced Grunt 6009 | -6/Cetus | Manufactured an Enhanced Grunt 6034 | -6/Cetus | Manufactured an Enhanced Grunt 6059 | -6/Cetus | Manufactured an Enhanced Grunt 6084 | -6/Cetus | Manufactured an Enhanced Grunt 6098 | -6/Cetus | Discovered new exit (range 16) 6121 | -6/Cetus | Spotted Cetus Guard 6121 | -6/Cetus | Spotted Cetus Guard 6134 | -6/Cetus | Allies destroyed Cetus Guard 6134 | -6/Cetus | Spotted Cetus Guard 6135 | -6/Cetus | Spotted Cetus Guard 6140 | -6/Cetus | Allies destroyed Cetus Guard 6147 | -6/Cetus | Allies destroyed Cetus Guard 6149 | -6/Cetus | Allies destroyed Cetus Guard 6150 | -6/Cetus | Discovered exit to Factory (range 15) 6159 | -6/Cetus | Met Revision 17 6178 | -6/Cetus | Lost 5 allies 6255 | -6/Cetus | Identified exit to Archives 6279 | -6/Cetus | Entered Archives 6279 | -6/Archives | Accompanied by 11 allies (A7) 6339 | -6/Archives | Discovered new exit (range 16) 6345 | -6/Archives | Lost 4 allies 6354 | -6/Archives | Discovered new exit (range 16) 6362 | -6/Archives | Unable to access archive contents 6375 | -6/Archives | Unable to access archive contents 6378 | -6/Archives | Discovered exit to Factory (range 16) 6393 | -6/Archives | Unable to access archive contents 6456 | -6/Archives | Identified exit to Hub_04(d) 6534 | -6/Archives | Unable to access archive contents 6576 | -6/Archives | Build established: Scavenger-Mutant 6583 | -6/Archives | Unable to access archive contents 6690 | -6/Archives | Entered Hub_04(d) 6690 | -6/Hub_04(d) | Accompanied by 6 allies 6781 | -6/Hub_04(d) | Discovered exit to Factory (range 13) 6828 | -6/Hub_04(d) | Lost 5 allies 7013 | -6/Hub_04(d) | Crushed by falling debris 7013 | -6/Hub_04(d) | Core integrity fell below 50% 7013 | -6/Hub_04(d) | System corruption reached 10% 7044 | -6/Hub_04(d) | Lost 7 parts (2p1n3u1w) 7052 | -6/Hub_04(d) | Discovered exit to Factory (range 10) 7333 | -6/Hub_04(d) | Network Hub disabled 7506 | -6/Hub_04(d) | Spotted Lightning 7511 | -6/Hub_04(d) | Spotted Lightning 7513 | -6/Hub_04(d) | Spotted Lightning 7537 | -6/Hub_04(d) | Entered Factory 7537 | -5/Factory | Evolved 2 slots: Power x1, Weapon x1 7562 | -5/Factory | Lost 5 parts (2n1u2w) 8164 | -5/Factory | Repaired Arm. Treads 8197 | -5/Factory | Repaired Imp. Treads 8249 | -5/Factory | Repaired Adv. Heat Sink 8300 | -5/Factory | Repaired Arm. Leg 8786 | -5/Factory | Lost 5 parts (1p2n2u) 9045 | -5/Factory | Repaired Neutrino Core 9234 | -5/Factory | Build established: Scavenger-Gunner 9524 | -5/Factory | Discovered new exit (range 8) 9538 | -5/Factory | Identified exit to Factory 9543 | -5/Factory | Entered another Factory area 9543 | -4/Factory | Evolved 2 slots: Propulsion x1, Utility x1 9616 | -4/Factory | Repaired Gravmag Array 10258 | -4/Factory | Spotted B-86 Titan 10622 | -4/Factory | Spotted B-86 Titan 10633 | -4/Factory | Core integrity fell below 50% 10642 | -4/Factory | Core integrity fell below 20% 10652 | -4/Factory | Core destroyed Last Messages --------------- 10637_ B-86 Titan activates siege mode. 10637_ Lgt. Antimatter Reactor destroyed. 10638_ Overheating: Adv. Signal Interpreter damaged (-11). 10641_ Imp. Gyrokinetic Inverter broken. 10641_ Overheating: Short circuit. 10642_ Overheating: Core damaged (-161). 10643_ Power failure, Neutrino Core shutdown. 10643_ Knocked back. 10646_ Adv. Heat Sink destroyed. 10646_ Penetrated by Slug. 10647_ Matter Neutralizer broken. 10647_ Overheating: Short circuit. 10649_ Power failure, Mic. Fission Core shutdown. 10650_ Hvy. Phase Cannon destroyed. 10650_ Machine Analyzer destroyed. 10651_ Adv. Visual Processing Unit broken. 10651_ Overheating: Short circuit. 10652_ Overheating: Core damaged (-195). Map ----- +----------------------------------------------------+ | ???????????????????# """" #???????????????????? | | ???????????????????# #?????????###+###???? | | ???????????????????#####+#####????##"+## *##??? | | ??????????????????????# ######### *!### | | ??????????????????????# " !!!!!! | | ??????????????????????# ######### "" ## | | ??????????????????????## ##???????## T## ##!#? | | ???????????????????????# #?????????????### #??#!#? | | ???????????????????????# #??????######???# ####+## | | ???????????????????????# #??????# = ##### # = | | ???????????????????????# #??????# # + | | ???????????????????????# #??????# # # ! ! | | ???????????????????????# #??????# # ####### | | ??????????????????????##+######## # #?????? | | ??????????????????????# ! # + #?????? | | ??????????????????????# "" # [ #= ##????? | | ??????????????????????# """ "" # [%! ##????? | | ??????????????????????# """ F" # #[ ###???? | | ??????????????????????# """ "" ###### *!=### " " | | ??????????????????????# + [%[ + " " | | ??????????????????????# ##########=### " " | | ????????????????##????# / #?????#### #???? " | | ????????????????#BB########+############ ?????? | | ???? ####BB; % ! #???? | | ???? %% %! #???? | | ???? % @ [ #???? | | ????????## !] ""####;############ #???? | | ?????????# !] ""????????????????### ###???? | | ?????????# ! ""??????????????????# #?????? | | ?????????# G??????????????????# #?????? | | ?????????+ ""?????????????????? ?????? | | ?????????# """ ""???"""?"""?"""???? ?????? | | ?????????# """ ?""???"""?"""?"""???? ?????? | | ??????????????""" ??????"""?"""?"""???? ?????? | | ??????????????? ?????????????????????? ?????? | | ????????????????? ???????"""?"""?"""???? ?????? | | ??????????????????????????"""?"""?"""???? ?????? | | ??????????????????????????"""?"""?"""???? ?????? | | ????????????????????????????????????????? ?????? | | ???????????????"""?"""??????????????????? ?????? | | ???????????????"""?"""???????????????????????????? | | ???????????????"""?"""???????????????????????????? | | ?????????????????????????????????????????????????? | | ?????????????????????????????????????????????????? | | ?????????????????????????????????????????????????? | | ?????????????????????????????????????????????????? | | ?????????????????????????????????????????????????? | | ?????????????????????????????????????????????????? | | ?????????????????????????????????????????????????? | | ?????????????????????????????????????????????????? | +----------------------------------------------------+ Best States ------------- Heat Dissipation 110 Energy Generation 45 Energy Capacity 720 Matter Stores 300 Matter Capacity 300 Sight Range 20 Robot Scan Range 16 Terrain Scan Density 10 Armor Coverage 375 Resistance: KI 20 Resistance: TH 20 Resistance: EX 20 Resistance: EM 20 Resistance: I 20 Resistance: S 20 Resistance: P 20 Melee Speed Boost 20 Phase Shifting 5 Evasion (%) 50 Targeting Accuracy 10 Core Analysis 6 Recoil Reduction 6 Energy Filtering 30 Offensive Hacking 10 Item Schematics ----------------- None Robot Schematics ------------------ None Fabricated ------------ Nothing Repaired ---------- Imp. Heat Sink | 20% | -6/Factory Arm. Treads | 55% | -5/Factory Imp. Treads | 43% | -5/Factory Adv. Heat Sink | 30% | -5/Factory Arm. Leg | 60% | -5/Factory Neutrino Core | 28% | -5/Factory Gravmag Array | 23% | -4/Factory Studied --------- Wheel | -6/Factory | Hacked Carbon-fiber Leg | -6/Factory | Hacked Alien Tech Used ----------------- None Achievements -------------- Bumper Bots I Have A Map? Item+ Spot Them First Throw Away The Key Well Done Challenges ------------ None Game ------ Seed RecoilEnhancedField Manual? 0 Play Time 01:46:27 Cumulative 260.8 hours Start 2025.11.03 @ 12:35:02 End 2025.11.03 @ 15:09:18 Sessions 1 Manual Loads 0 Difficulty Adventurer Special Mode None Game No. 300 Rogue 0 Adventurer 300 Explorer 0 Win Type - Total 0 Types 0/0/0/0/0/0/0/0/0/0 Lore% 73 Gallery% 59 Achievement% 31 Wizard Run 0 Options --------- Layout 2 ASCII 0 Keyboard 0 Movement Mouse Keybinds 0 Fullscreen 2 Font 48/Smallcaps Map View 50x44 Zoom Use 0% Tactical HUD 1 Map Filters NONE Filters NONE Steam 1 RUN: 8803abf0-570c-4667-948b-cd8a1900dde0